[Event "Titled Tuesday Blitz December 27 Early 2022"]
[White "Stork, Oliver"]
[Black "Piesik, Piotr"]
[WhiteFideId "12955728"]
[BlackFideId "1136194"]
[WhiteElo "2342"]
[BlackElo "2426"]
[Result "0-1"]
[Round "09"]
[TimeControl "180+2"]
[Date "2022.12.27"]
[WhiteClock "0:00:03"]
[BlackClock "0:00:35"]

1. d4 {[%clk 0:03:00]}  c5 {[%clk 0:02:59]} 2. d5 {[%clk 0:03:00]}  e5 {[%clk 0:02:59]} 3. e4 {[%clk 0:02:59]}  d6 {[%clk 0:02:59]} 4. Nc3 {[%clk 0:02:59]}  Be7 {[%clk 0:02:59]} 5. f4 {[%clk 0:02:59]}  exf4 {[%clk 0:02:59]} 6. Bxf4 {[%clk 0:03:00]}  Bg5 {[%clk 0:02:58]} 7. Qd2 {[%clk 0:02:59]}  Bxf4 {[%clk 0:02:58]} 8. Qxf4 {[%clk 0:03:00]}  Qf6 {[%clk 0:02:57]} 9. g3 {[%clk 0:02:48]}  a6 {[%clk 0:02:53]} 10. a4 {[%clk 0:02:39]}  Nd7 {[%clk 0:02:52]} 11. O-O-O {[%clk 0:02:34]}  Ne5 {[%clk 0:02:52]} 12. Be2 {[%clk 0:02:22]}  g5 {[%clk 0:02:43]} 13. Qe3 {[%clk 0:02:13]}  g4 {[%clk 0:02:39]} 14. h3 {[%clk 0:02:11]}  h5 {[%clk 0:02:37]} 15. Rf1 {[%clk 0:01:54]}  Qh6 {[%clk 0:02:37]} 16. Qf4 {[%clk 0:01:49]}  Qg7 {[%clk 0:02:31]} 17. Nd1 {[%clk 0:01:43]}  Ne7 {[%clk 0:02:25]} 18. Ne3 {[%clk 0:01:39]}  Bd7 {[%clk 0:02:16]} 19. Nc4 {[%clk 0:01:30]}  Nxc4 {[%clk 0:02:07]} 20. Bxc4 {[%clk 0:01:31]}  Qg6 {[%clk 0:01:57]} 21. Bd3 {[%clk 0:00:51]}  O-O-O {[%clk 0:01:41]} 22. Qxf7 {[%clk 0:00:32]}  Qxf7 {[%clk 0:01:35]} 23. Rxf7 {[%clk 0:00:31]}  Ng6 {[%clk 0:01:35]} 24. Rf6 {[%clk 0:00:23]}  Ne5 {[%clk 0:01:34]} 25. Rxd6 {[%clk 0:00:22]}  Bxa4 {[%clk 0:01:34]} 26. Rxd8+ {[%clk 0:00:20]}  Kxd8 {[%clk 0:01:28]} 27. hxg4 {[%clk 0:00:20]}  Nxg4 {[%clk 0:01:28]} 28. Ne2 {[%clk 0:00:20]}  Be8 {[%clk 0:01:13]} 29. Nf4 {[%clk 0:00:20]}  Ne5 {[%clk 0:01:12]} 30. Be2 {[%clk 0:00:20]}  Ke7 {[%clk 0:01:08]} 31. Bxh5 {[%clk 0:00:17]}  Kd6 {[%clk 0:01:04]} 32. Rh4 {[%clk 0:00:16]}  Bxh5 {[%clk 0:01:01]} 33. Rxh5 {[%clk 0:00:16]}  Rxh5 {[%clk 0:00:59]} 34. Nxh5 {[%clk 0:00:16]}  Nf3 {[%clk 0:00:56]} 35. Kd1 {[%clk 0:00:13]}  Ke5 {[%clk 0:00:55]} 36. Ke2 {[%clk 0:00:12]}  Nd4+ {[%clk 0:00:54]} 37. Kd3 {[%clk 0:00:12]}  b5 {[%clk 0:00:53]} 38. c3 {[%clk 0:00:03]}  c4+ {[%clk 0:00:49]} 39. Ke3 {[%clk 0:00:03]}  Nc2+ {[%clk 0:00:49]} 40. Kd2 {[%clk 0:00:03]}  Na1 {[%clk 0:00:49]} 41. Nf4 {[%clk 0:00:02]}  Kxe4 {[%clk 0:00:46]} 42. d6 {[%clk 0:00:03]}  Nb3+ {[%clk 0:00:46]} 43. Ke2 {[%clk 0:00:03]}  Nc5 {[%clk 0:00:46]} 44. Ng6 {[%clk 0:00:01]}  Kd5 {[%clk 0:00:44]} 45. Ke3 {[%clk 0:00:02]}  Kxd6 {[%clk 0:00:43]} 46. g4 {[%clk 0:00:03]}  Na4 {[%clk 0:00:42]} 47. g5 {[%clk 0:00:03]}  Nxb2 {[%clk 0:00:40]} 48. Nf4 {[%clk 0:00:03]}  Ke5 {[%clk 0:00:37]} 49. g6 {[%clk 0:00:02]}  Kf6 {[%clk 0:00:37]} 50. Kd4 {[%clk 0:00:03]}  Nd3 {[%clk 0:00:34]} 51. Nxd3 {[%clk 0:00:03]}  cxd3 {[%clk 0:00:35]} 0-1


[Site "https://www.chess.com"]

[Event "Titled Tuesday Blitz December 27 Early 2022"]
[White "Tactrics"]
[Black "Grigoriants, Sergey"]
[BlackFideId "4130804"]
[WhiteElo "2976"]
[BlackElo "2562"]
[Result "1-0"]
[Round "09"]
[TimeControl "180+2"]
[Date "2022.12.27"]
[WhiteClock "0:00:19"]
[BlackClock "0:00:01"]

1. e4 {[%clk 0:03:00]}  c6 {[%clk 0:02:53]} 2. Nc3 {[%clk 0:03:00]}  d5 {[%clk 0:02:53]} 3. Nf3 {[%clk 0:03:01]}  Bg4 {[%clk 0:02:47]} 4. h3 {[%clk 0:03:02]}  Bxf3 {[%clk 0:02:47]} 5. Qxf3 {[%clk 0:03:03]}  Nf6 {[%clk 0:02:47]} 6. d3 {[%clk 0:03:02]}  e6 {[%clk 0:02:47]} 7. Qg3 {[%clk 0:03:02]}  g6 {[%clk 0:02:38]} 8. Be2 {[%clk 0:03:01]}  Bg7 {[%clk 0:02:34]} 9. Bg5 {[%clk 0:03:00]}  h6 {[%clk 0:02:32]} 10. Bd2 {[%clk 0:02:57]}  Nbd7 {[%clk 0:02:27]} 11. e5 {[%clk 0:02:47]}  Ng8 {[%clk 0:02:22]} 12. f4 {[%clk 0:02:48]}  Ne7 {[%clk 0:02:21]} 13. Qf2 {[%clk 0:02:48]}  h5 {[%clk 0:02:21]} 14. g3 {[%clk 0:02:46]}  Qb6 {[%clk 0:02:16]} 15. Qxb6 {[%clk 0:02:37]}  axb6 {[%clk 0:02:17]} 16. Bf3 {[%clk 0:02:29]}  Nf5 {[%clk 0:02:10]} 17. Ne2 {[%clk 0:02:29]}  g5 {[%clk 0:01:57]} 18. a3 {[%clk 0:02:16]}  gxf4 {[%clk 0:01:42]} 19. gxf4 {[%clk 0:02:17]}  f6 {[%clk 0:01:43]} 20. d4 {[%clk 0:02:13]}  c5 {[%clk 0:01:38]} 21. c3 {[%clk 0:02:01]}  Nb8 {[%clk 0:01:32]} 22. Kf2 {[%clk 0:01:46]}  Nc6 {[%clk 0:01:32]} 23. Be3 {[%clk 0:01:42]}  Ke7 {[%clk 0:01:02]} 24. Rag1 {[%clk 0:01:38]}  Bh6 {[%clk 0:01:00]} 25. exf6+ {[%clk 0:01:14]}  Kxf6 {[%clk 0:00:59]} 26. Bxh5 {[%clk 0:01:12]}  cxd4 {[%clk 0:00:55]} 27. Rg6+ {[%clk 0:01:05]}  Ke7 {[%clk 0:00:51]} 28. cxd4 {[%clk 0:01:05]}  Nh4 {[%clk 0:00:31]} 29. Rg4 {[%clk 0:01:00]}  Nf5 {[%clk 0:00:31]} 30. Rg6 {[%clk 0:01:01]}  Nh4 {[%clk 0:00:31]} 31. Rgg1 {[%clk 0:00:55]}  Nf5 {[%clk 0:00:29]} 32. Bg4 {[%clk 0:00:52]}  Nxe3 {[%clk 0:00:24]} 33. Kxe3 {[%clk 0:00:53]}  Raf8 {[%clk 0:00:23]} 34. Rf1 {[%clk 0:00:53]}  Rf6 {[%clk 0:00:21]} 35. Nc1 {[%clk 0:00:44]}  e5 {[%clk 0:00:17]} 36. dxe5 {[%clk 0:00:41]}  Nxe5 {[%clk 0:00:18]} 37. Kd4 {[%clk 0:00:30]}  Nc6+ {[%clk 0:00:08]} 38. Kxd5 {[%clk 0:00:30]}  Bxf4 {[%clk 0:00:07]} 39. Ke4 {[%clk 0:00:23]}  Rd8 {[%clk 0:00:04]} 40. Ne2 {[%clk 0:00:20]}  Bg5 {[%clk 0:00:05]} 41. Rxf6 {[%clk 0:00:21]}  Bxf6 {[%clk 0:00:05]} 42. b4 {[%clk 0:00:18]}  Ne5 {[%clk 0:00:05]} 43. Nf4 {[%clk 0:00:17]}  Nxg4 {[%clk 0:00:02]} 44. hxg4 {[%clk 0:00:18]}  Rd4+ {[%clk 0:00:01]} 45. Kf5 {[%clk 0:00:19]} 1-0


[Site "https://www.chess.com"]

[Event "Titled Tuesday Blitz December 27 Early 2022"]
[White "Tarasova, Viktoriya"]
[Black "Makhmudov, Shukhrat"]
[WhiteFideId "4175840"]
[BlackFideId "14200775"]
[WhiteElo "2226"]
[BlackElo "2115"]
[Result "1-0"]
[Round "09"]
[TimeControl "180+2"]
[Date "2022.12.27"]
[WhiteClock "0:00:38"]
[BlackClock "0:00:02"]

1. d4 {[%clk 0:03:00]}  Nf6 {[%clk 0:02:50]} 2. c4 {[%clk 0:03:00]}  e6 {[%clk 0:02:49]} 3. Nc3 {[%clk 0:03:00]}  Bb4 {[%clk 0:02:49]} 4. Nf3 {[%clk 0:03:00]}  c5 {[%clk 0:02:49]} 5. dxc5 {[%clk 0:02:59]}  Nc6 {[%clk 0:02:49]} 6. Bf4 {[%clk 0:02:55]}  Bxc3+ {[%clk 0:02:47]} 7. bxc3 {[%clk 0:02:55]}  O-O {[%clk 0:02:48]} 8. Qc2 {[%clk 0:02:54]}  Re8 {[%clk 0:02:34]} 9. Bd6 {[%clk 0:02:50]}  Qa5 {[%clk 0:02:32]} 10. Nd2 {[%clk 0:02:42]}  e5 {[%clk 0:02:18]} 11. e3 {[%clk 0:02:22]}  e4 {[%clk 0:02:18]} 12. Be2 {[%clk 0:02:17]}  Ne5 {[%clk 0:02:18]} 13. O-O {[%clk 0:02:13]}  Ng6 {[%clk 0:01:59]} 14. Nb3 {[%clk 0:02:00]}  Qd8 {[%clk 0:01:42]} 15. Rfd1 {[%clk 0:01:58]}  b6 {[%clk 0:01:41]} 16. Bg3 {[%clk 0:01:51]}  Bb7 {[%clk 0:01:39]} 17. cxb6 {[%clk 0:01:48]}  axb6 {[%clk 0:01:31]} 18. c5 {[%clk 0:01:47]}  bxc5 {[%clk 0:00:20]} 19. Nxc5 {[%clk 0:01:45]}  Qc8 {[%clk 0:00:20]} 20. Bd6 {[%clk 0:01:32]}  Bc6 {[%clk 0:00:18]} 21. a4 {[%clk 0:01:28]}  Nd5 {[%clk 0:00:11]} 22. a5 {[%clk 0:01:22]}  Qd8 {[%clk 0:00:09]} 23. c4 {[%clk 0:01:04]}  Nb4 {[%clk 0:00:05]} 24. Qc3 {[%clk 0:00:59]}  Nd3 {[%clk 0:00:05]} 25. Nxd3 {[%clk 0:00:45]}  exd3 {[%clk 0:00:05]} 26. Bf1 {[%clk 0:00:46]}  Qg5 {[%clk 0:00:05]} 27. Bg3 {[%clk 0:00:43]}  Qf5 {[%clk 0:00:02]} 28. Qxd3 {[%clk 0:00:38]} 1-0


[Site "https://www.chess.com"]

[Event "Titled Tuesday Blitz December 27 Early 2022"]
[White "Timofeev, Artyom"]
[Black "Zemlyanskii, Ivan"]
[WhiteFideId "4140419"]
[BlackFideId "24249971"]
[WhiteElo "2567"]
[BlackElo "2300"]
[Result "1-0"]
[Round "09"]
[TimeControl "180+2"]
[Date "2022.12.27"]
[WhiteClock "0:00:40"]
[BlackClock "0:00:02"]

1. d4 {[%clk 0:03:00]}  d5 {[%clk 0:03:00]} 2. Nc3 {[%clk 0:02:59]}  Nf6 {[%clk 0:02:59]} 3. Bf4 {[%clk 0:02:59]}  c5 {[%clk 0:03:00]} 4. e3 {[%clk 0:02:59]}  cxd4 {[%clk 0:02:59]} 5. exd4 {[%clk 0:02:59]}  a6 {[%clk 0:02:59]} 6. Nf3 {[%clk 0:02:59]}  Nc6 {[%clk 0:02:57]} 7. Ne5 {[%clk 0:02:59]}  Bd7 {[%clk 0:02:57]} 8. Qd2 {[%clk 0:02:54]}  e6 {[%clk 0:02:56]} 9. Be2 {[%clk 0:02:41]}  Qb6 {[%clk 0:02:52]} 10. Nxc6 {[%clk 0:02:37]}  Bxc6 {[%clk 0:02:52]} 11. Rb1 {[%clk 0:02:21]}  Be7 {[%clk 0:02:51]} 12. O-O {[%clk 0:02:20]}  Rd8 {[%clk 0:02:48]} 13. a3 {[%clk 0:02:19]}  O-O {[%clk 0:02:41]} 14. Rfe1 {[%clk 0:02:18]}  Ne4 {[%clk 0:02:39]} 15. Nxe4 {[%clk 0:02:17]}  dxe4 {[%clk 0:02:38]} 16. c3 {[%clk 0:02:18]}  f5 {[%clk 0:02:20]} 17. Be5 {[%clk 0:02:14]}  Bd6 {[%clk 0:01:43]} 18. Bxd6 {[%clk 0:02:09]}  Rxd6 {[%clk 0:01:44]} 19. Qf4 {[%clk 0:02:10]}  Qd8 {[%clk 0:01:42]} 20. h4 {[%clk 0:02:09]}  Qe7 {[%clk 0:01:34]} 21. Rbd1 {[%clk 0:02:06]}  b5 {[%clk 0:01:24]} 22. c4 {[%clk 0:01:58]}  bxc4 {[%clk 0:01:22]} 23. Bxc4 {[%clk 0:01:58]}  Bd5 {[%clk 0:01:21]} 24. b3 {[%clk 0:01:58]}  Rc8 {[%clk 0:01:14]} 25. Bxd5 {[%clk 0:01:46]}  Rxd5 {[%clk 0:01:15]} 26. b4 {[%clk 0:01:41]}  Rcd8 {[%clk 0:01:15]} 27. Rc1 {[%clk 0:01:34]}  Rxd4 {[%clk 0:01:14]} 28. Rc5 {[%clk 0:01:27]}  R4d5 {[%clk 0:01:02]} 29. Rec1 {[%clk 0:01:24]}  h6 {[%clk 0:01:03]} 30. Rc6 {[%clk 0:01:14]}  a5 {[%clk 0:00:57]} 31. bxa5 {[%clk 0:01:09]}  Rxa5 {[%clk 0:00:58]} 32. Rc7 {[%clk 0:01:09]}  Qf6 {[%clk 0:00:55]} 33. Rb7 {[%clk 0:01:04]}  e5 {[%clk 0:00:25]} 34. Qg3 {[%clk 0:01:04]}  f4 {[%clk 0:00:21]} 35. Qg4 {[%clk 0:01:04]}  e3 {[%clk 0:00:21]} 36. Rcc7 {[%clk 0:01:01]}  exf2+ {[%clk 0:00:21]} 37. Kxf2 {[%clk 0:00:59]}  g6 {[%clk 0:00:21]} 38. h5 {[%clk 0:00:49]}  g5 {[%clk 0:00:19]} 39. Rg7+ {[%clk 0:00:44]}  Qxg7 {[%clk 0:00:19]} 40. Rxg7+ {[%clk 0:00:44]}  Kxg7 {[%clk 0:00:20]} 41. Qe6 {[%clk 0:00:45]}  Rad5 {[%clk 0:00:21]} 42. Qg6+ {[%clk 0:00:45]}  Kf8 {[%clk 0:00:21]} 43. Qxh6+ {[%clk 0:00:45]}  Ke7 {[%clk 0:00:20]} 44. Qxg5+ {[%clk 0:00:45]}  Ke6 {[%clk 0:00:21]} 45. Qg6+ {[%clk 0:00:45]}  Ke7 {[%clk 0:00:22]} 46. h6 {[%clk 0:00:45]}  Rd2+ {[%clk 0:00:20]} 47. Kg1 {[%clk 0:00:46]}  f3 {[%clk 0:00:14]} 48. gxf3 {[%clk 0:00:45]}  Rb2 {[%clk 0:00:10]} 49. Qg5+ {[%clk 0:00:44]}  Ke8 {[%clk 0:00:09]} 50. Qxd8+ {[%clk 0:00:44]}  Kxd8 {[%clk 0:00:09]} 51. h7 {[%clk 0:00:44]}  Rb1+ {[%clk 0:00:10]} 52. Kg2 {[%clk 0:00:44]}  Rb2+ {[%clk 0:00:10]} 53. Kg3 {[%clk 0:00:45]}  Ke7 {[%clk 0:00:07]} 54. h8=Q {[%clk 0:00:45]}  Rb5 {[%clk 0:00:04]} 55. Qc8 {[%clk 0:00:43]}  Rd5 {[%clk 0:00:03]} 56. Qb7+ {[%clk 0:00:42]}  Ke6 {[%clk 0:00:04]} 57. a4 {[%clk 0:00:42]}  Rd6 {[%clk 0:00:01]} 58. a5 {[%clk 0:00:42]}  Kf5 {[%clk 0:00:02]} 59. Qc8+ {[%clk 0:00:41]}  Kf6 {[%clk 0:00:02]} 60. a6 {[%clk 0:00:40]}  e4 {[%clk 0:00:02]} 61. fxe4 {[%clk 0:00:40]} 1-0


[Site "https://www.chess.com"]

[Event "Titled Tuesday Blitz December 27 Early 2022"]
[White "Toropov, Pavel"]
[Black "Bryakin, Mikhail"]
[WhiteFideId "24129178"]
[BlackFideId "4165314"]
[WhiteElo "2336"]
[BlackElo "2455"]
[Result "1-0"]
[Round "09"]
[TimeControl "180+2"]
[Date "2022.12.27"]
[WhiteClock "0:00:06"]
[BlackClock "0:00:05"]

1. e4 {[%clk 0:02:59]}  d5 {[%clk 0:02:55]} 2. exd5 {[%clk 0:02:58]}  Qxd5 {[%clk 0:02:56]} 3. Nc3 {[%clk 0:02:56]}  Qe5+ {[%clk 0:02:57]} 4. Be2 {[%clk 0:02:55]}  Bg4 {[%clk 0:02:57]} 5. f3 {[%clk 0:02:51]}  Bh5 {[%clk 0:02:56]} 6. d4 {[%clk 0:02:50]}  Qd6 {[%clk 0:02:49]} 7. Nh3 {[%clk 0:02:50]}  f6 {[%clk 0:02:39]} 8. Bf4 {[%clk 0:02:35]}  Qd7 {[%clk 0:02:28]} 9. Bg3 {[%clk 0:02:13]}  Bf7 {[%clk 0:02:26]} 10. Nf4 {[%clk 0:02:12]}  Nc6 {[%clk 0:02:16]} 11. d5 {[%clk 0:02:05]}  Ne5 {[%clk 0:02:15]} 12. Qd4 {[%clk 0:01:52]}  a6 {[%clk 0:02:08]} 13. O-O-O {[%clk 0:01:51]}  Nh6 {[%clk 0:02:06]} 14. Qe4 {[%clk 0:01:22]}  Nf5 {[%clk 0:01:59]} 15. Bf2 {[%clk 0:01:21]}  Nd6 {[%clk 0:01:58]} 16. Qd4 {[%clk 0:01:14]}  g6 {[%clk 0:01:56]} 17. Rhe1 {[%clk 0:01:11]}  Bh6 {[%clk 0:01:55]} 18. g3 {[%clk 0:01:06]}  b5 {[%clk 0:01:55]} 19. Kb1 {[%clk 0:01:05]}  O-O {[%clk 0:01:55]} 20. Ne6 {[%clk 0:01:00]}  Bxe6 {[%clk 0:01:47]} 21. dxe6 {[%clk 0:01:01]}  Qxe6 {[%clk 0:01:47]} 22. f4 {[%clk 0:00:59]}  Nc6 {[%clk 0:01:44]} 23. Qc5 {[%clk 0:00:54]}  Qd7 {[%clk 0:01:09]} 24. Bf3 {[%clk 0:00:53]}  Na5 {[%clk 0:01:09]} 25. Bxa8 {[%clk 0:00:50]}  c6 {[%clk 0:01:05]} 26. Qb6 {[%clk 0:00:37]}  Nac4 {[%clk 0:01:04]} 27. Qxc6 {[%clk 0:00:35]}  Qh3 {[%clk 0:01:04]} 28. Rxe7 {[%clk 0:00:29]}  Qxh2 {[%clk 0:01:04]} 29. Bc5 {[%clk 0:00:22]}  Nf5 {[%clk 0:00:45]} 30. Qd7 {[%clk 0:00:20]}  Nxe7 {[%clk 0:00:32]} 31. Bxe7 {[%clk 0:00:20]}  Rxa8 {[%clk 0:00:31]} 32. Qd5+ {[%clk 0:00:19]}  Kg7 {[%clk 0:00:28]} 33. Qxa8 {[%clk 0:00:18]}  Kf7 {[%clk 0:00:28]} 34. Qd5+ {[%clk 0:00:14]}  Kg7 {[%clk 0:00:24]} 35. Qd7 {[%clk 0:00:13]}  Bxf4 {[%clk 0:00:21]} 36. Bd6+ {[%clk 0:00:11]}  Kh6 {[%clk 0:00:18]} 37. Bxf4+ {[%clk 0:00:11]}  g5 {[%clk 0:00:19]} 38. Qd5 {[%clk 0:00:10]}  Kg7 {[%clk 0:00:14]} 39. Bc1 {[%clk 0:00:10]}  Qf2 {[%clk 0:00:13]} 40. Qd7+ {[%clk 0:00:09]}  Kg6 {[%clk 0:00:13]} 41. Rh1 {[%clk 0:00:09]}  h5 {[%clk 0:00:14]} 42. Qd3+ {[%clk 0:00:09]}  Kh6 {[%clk 0:00:13]} 43. Rf1 {[%clk 0:00:09]}  Qb6 {[%clk 0:00:13]} 44. Qf5 {[%clk 0:00:09]}  Kg7 {[%clk 0:00:12]} 45. Nd5 {[%clk 0:00:08]}  Qd4 {[%clk 0:00:10]} 46. Nxf6 {[%clk 0:00:07]}  Na3+ {[%clk 0:00:05]} 47. bxa3 {[%clk 0:00:06]} 1-0


[Site "https://www.chess.com"]

[Event "Titled Tuesday Blitz December 27 Early 2022"]
[White "Turzo, Attila"]
[Black "Mohammed, Zozek Salah Mohammed"]
[WhiteFideId "704954"]
[BlackFideId "4803361"]
[WhiteElo "2279"]
[BlackElo "2210"]
[Result "0-1"]
[Round "09"]
[TimeControl "180+2"]
[Date "2022.12.27"]
[WhiteClock "0:00:06"]
[BlackClock "0:00:29"]

1. d4 {[%clk 0:03:00]}  Nf6 {[%clk 0:02:50]} 2. Bf4 {[%clk 0:03:00]}  c5 {[%clk 0:02:49]} 3. dxc5 {[%clk 0:02:54]}  Na6 {[%clk 0:02:45]} 4. Nc3 {[%clk 0:02:48]}  Nxc5 {[%clk 0:02:45]} 5. Qd4 {[%clk 0:02:41]}  d6 {[%clk 0:02:43]} 6. Bg5 {[%clk 0:02:36]}  Ne6 {[%clk 0:02:41]} 7. Qd2 {[%clk 0:02:35]}  Nxg5 {[%clk 0:02:36]} 8. Qxg5 {[%clk 0:02:36]}  g6 {[%clk 0:02:35]} 9. e4 {[%clk 0:02:31]}  Bg7 {[%clk 0:02:35]} 10. h4 {[%clk 0:02:23]}  h6 {[%clk 0:02:30]} 11. Qd2 {[%clk 0:02:13]}  Qb6 {[%clk 0:02:28]} 12. O-O-O {[%clk 0:01:48]}  Nxe4 {[%clk 0:02:23]} 13. Bb5+ {[%clk 0:01:31]}  Bd7 {[%clk 0:02:04]} 14. Nxe4 {[%clk 0:01:22]}  Qxb5 {[%clk 0:01:58]} 15. c3 {[%clk 0:01:15]}  O-O {[%clk 0:01:43]} 16. h5 {[%clk 0:01:12]}  g5 {[%clk 0:01:42]} 17. f4 {[%clk 0:01:10]}  f5 {[%clk 0:01:33]} 18. Nf2 {[%clk 0:00:48]}  g4 {[%clk 0:01:28]} 19. Ne2 {[%clk 0:00:40]}  Rac8 {[%clk 0:01:22]} 20. Nd4 {[%clk 0:00:32]}  Qc4 {[%clk 0:01:15]} 21. Kb1 {[%clk 0:00:30]}  e5 {[%clk 0:01:02]} 22. Nb3 {[%clk 0:00:22]}  Qxf4 {[%clk 0:00:42]} 23. Qxf4 {[%clk 0:00:12]}  exf4 {[%clk 0:00:41]} 24. Nd3 {[%clk 0:00:12]}  Bc6 {[%clk 0:00:36]} 25. Nxf4 {[%clk 0:00:11]}  Be5 {[%clk 0:00:36]} 26. Ng6 {[%clk 0:00:08]}  Bxg2 {[%clk 0:00:36]} 27. Nxf8 {[%clk 0:00:07]}  Bxh1 {[%clk 0:00:33]} 28. Rxh1 {[%clk 0:00:07]}  Rxf8 {[%clk 0:00:33]} 29. Kc2 {[%clk 0:00:07]}  f4 {[%clk 0:00:31]} 30. Kd3 {[%clk 0:00:08]}  f3 {[%clk 0:00:31]} 31. Nd2 {[%clk 0:00:06]}  g3 {[%clk 0:00:29]} 0-1


[Site "https://www.chess.com"]

[Event "Titled Tuesday Blitz December 27 Early 2022"]
[White "Vasques, Antonio Pedro Freixial"]
[Black "Berezin, Viktor"]
[WhiteFideId "1908332"]
[BlackFideId "14107872"]
[WhiteElo "2214"]
[BlackElo "2307"]
[Result "0-1"]
[Round "09"]
[TimeControl "180+2"]
[Date "2022.12.27"]
[WhiteClock "0:00:15"]
[BlackClock "0:01:29"]

1. e4 {[%clk 0:02:37]}  g6 {[%clk 0:02:59]} 2. d4 {[%clk 0:02:37]}  Bg7 {[%clk 0:02:59]} 3. Nc3 {[%clk 0:02:37]}  d6 {[%clk 0:02:59]} 4. h4 {[%clk 0:02:33]}  h5 {[%clk 0:02:59]} 5. Be3 {[%clk 0:02:30]}  Nf6 {[%clk 0:02:59]} 6. f3 {[%clk 0:02:30]}  c6 {[%clk 0:02:58]} 7. Nh3 {[%clk 0:02:31]}  O-O {[%clk 0:02:57]} 8. Qd2 {[%clk 0:02:31]}  b5 {[%clk 0:02:57]} 9. O-O-O {[%clk 0:02:30]}  Qa5 {[%clk 0:02:56]} 10. Kb1 {[%clk 0:02:30]}  b4 {[%clk 0:02:54]} 11. Ne2 {[%clk 0:02:30]}  e5 {[%clk 0:02:54]} 12. Nc1 {[%clk 0:02:27]}  Nbd7 {[%clk 0:02:50]} 13. Ng5 {[%clk 0:02:25]}  d5 {[%clk 0:02:41]} 14. Nb3 {[%clk 0:02:16]}  Qc7 {[%clk 0:02:40]} 15. dxe5 {[%clk 0:02:16]}  Nxe5 {[%clk 0:02:40]} 16. Bd3 {[%clk 0:01:35]}  dxe4 {[%clk 0:02:34]} 17. Nxe4 {[%clk 0:01:33]}  Nd5 {[%clk 0:02:31]} 18. Bc5 {[%clk 0:01:26]}  Rd8 {[%clk 0:02:26]} 19. Qf2 {[%clk 0:01:07]}  a5 {[%clk 0:02:18]} 20. Rhe1 {[%clk 0:00:55]}  a4 {[%clk 0:02:18]} 21. Nc1 {[%clk 0:00:55]}  Be6 {[%clk 0:02:08]} 22. Ng5 {[%clk 0:00:45]}  Nxd3 {[%clk 0:02:03]} 23. Nxd3 {[%clk 0:00:35]}  Bf5 {[%clk 0:02:02]} 24. g4 {[%clk 0:00:17]}  Bxd3 {[%clk 0:01:54]} 25. Rxd3 {[%clk 0:00:17]}  a3 {[%clk 0:01:54]} 26. gxh5 {[%clk 0:00:15]}  gxh5 {[%clk 0:01:48]} 27. Bd4 {[%clk 0:00:16]}  Nc3+ {[%clk 0:01:30]} 28. bxc3 {[%clk 0:00:16]}  bxc3 {[%clk 0:01:31]} 29. Kc1 {[%clk 0:00:15]}  Qb7 {[%clk 0:01:30]} 30. Bxg7 {[%clk 0:00:14]}  Qb2+ {[%clk 0:01:30]} 31. Kd1 {[%clk 0:00:15]}  Rxd3+ {[%clk 0:01:30]} 32. Ke2 {[%clk 0:00:15]}  Rd2+ {[%clk 0:01:29]} 0-1


[Site "https://www.chess.com"]

[Event "Titled Tuesday Blitz December 27 Early 2022"]
[White "Wagner, Dinara"]
[Black "Kabanov, Nikolai"]
[WhiteFideId "24157570"]
[BlackFideId "4127820"]
[WhiteElo "2417"]
[BlackElo "2429"]
[Result "0-1"]
[Round "09"]
[TimeControl "180+2"]
[Date "2022.12.27"]
[WhiteClock "0:00:03"]
[BlackClock "0:00:46"]

1. d4 {[%clk 0:02:57]}  d5 {[%clk 0:02:57]} 2. c4 {[%clk 0:02:57]}  e6 {[%clk 0:02:58]} 3. Nf3 {[%clk 0:02:57]}  a6 {[%clk 0:02:58]} 4. cxd5 {[%clk 0:02:55]}  exd5 {[%clk 0:02:59]} 5. Nc3 {[%clk 0:02:55]}  Nf6 {[%clk 0:02:58]} 6. Bg5 {[%clk 0:02:55]}  Be6 {[%clk 0:02:58]} 7. g3 {[%clk 0:02:43]}  Nbd7 {[%clk 0:02:55]} 8. Bg2 {[%clk 0:02:43]}  h6 {[%clk 0:02:53]} 9. Bxf6 {[%clk 0:02:40]}  Nxf6 {[%clk 0:02:53]} 10. Qb3 {[%clk 0:02:39]}  b5 {[%clk 0:02:50]} 11. Ne5 {[%clk 0:02:39]}  Bd6 {[%clk 0:02:42]} 12. O-O {[%clk 0:02:38]}  O-O {[%clk 0:02:41]} 13. Nc6 {[%clk 0:02:22]}  Qe8 {[%clk 0:02:29]} 14. Nxd5 {[%clk 0:02:20]}  Bxd5 {[%clk 0:02:24]} 15. Bxd5 {[%clk 0:02:18]}  Nxd5 {[%clk 0:02:23]} 16. Qxd5 {[%clk 0:02:17]}  Qxe2 {[%clk 0:02:23]} 17. b3 {[%clk 0:02:01]}  Rfe8 {[%clk 0:02:18]} 18. Rac1 {[%clk 0:01:48]}  Qxa2 {[%clk 0:02:13]} 19. Ne5 {[%clk 0:01:48]}  Bxe5 {[%clk 0:02:02]} 20. dxe5 {[%clk 0:01:47]}  Rad8 {[%clk 0:02:01]} 21. Qf3 {[%clk 0:01:41]}  Rd7 {[%clk 0:01:52]} 22. Ra1 {[%clk 0:00:43]}  Qb2 {[%clk 0:01:50]} 23. Rxa6 {[%clk 0:00:30]}  Qxe5 {[%clk 0:01:49]} 24. Rc1 {[%clk 0:00:28]}  c5 {[%clk 0:01:35]} 25. Rc6 {[%clk 0:00:28]}  Rd5 {[%clk 0:01:32]} 26. Qg4 {[%clk 0:00:24]}  Qd4 {[%clk 0:01:23]} 27. Qf3 {[%clk 0:00:21]}  Ree5 {[%clk 0:01:14]} 28. Rc7 {[%clk 0:00:20]}  Rf5 {[%clk 0:01:12]} 29. Qe2 {[%clk 0:00:21]}  Rde5 {[%clk 0:01:08]} 30. Qf1 {[%clk 0:00:21]}  Rf3 {[%clk 0:01:06]} 31. Rd1 {[%clk 0:00:18]}  Qb2 {[%clk 0:01:02]} 32. Rc8+ {[%clk 0:00:08]}  Kh7 {[%clk 0:01:01]} 33. Rcd8 {[%clk 0:00:08]}  Qxb3 {[%clk 0:01:00]} 34. Qg2 {[%clk 0:00:06]}  Re2 {[%clk 0:00:58]} 35. R8d2 {[%clk 0:00:05]}  Rxd2 {[%clk 0:00:53]} 36. Rxd2 {[%clk 0:00:05]}  Qb1+ {[%clk 0:00:53]} 37. Qf1 {[%clk 0:00:05]}  Qxf1+ {[%clk 0:00:53]} 38. Kxf1 {[%clk 0:00:06]}  Rc3 {[%clk 0:00:52]} 39. Rb2 {[%clk 0:00:06]}  b4 {[%clk 0:00:52]} 40. Ke2 {[%clk 0:00:06]}  Kg6 {[%clk 0:00:49]} 41. Kd2 {[%clk 0:00:06]}  Kf5 {[%clk 0:00:49]} 42. Ra2 {[%clk 0:00:06]}  Ke4 {[%clk 0:00:47]} 43. Ra7 {[%clk 0:00:06]}  Rf3 {[%clk 0:00:47]} 44. Ke2 {[%clk 0:00:05]}  Rf6 {[%clk 0:00:47]} 45. Rc7 {[%clk 0:00:03]}  Kd4 {[%clk 0:00:46]} 0-1


[Site "https://www.chess.com"]